{"text_format":"1","workbook":"xlsx","n_sheets":2,"sheets":["3333002","الارشادات"],"not_rendered":{"charts":0,"images":0,"macros":1,"external_links":0,"defined_names":2,"comments":0,"pivot_tables":0},"unopened":[],"bounds":{"document_bytes":16777216,"sheet_cells":100000,"rows_first":2000,"rows_last":500,"rows_between":2000,"halvings":0,"cell_chars":16384,"cell_head_chars":4096},"cells_cut":0,"cells_raw":0,"read":"whole","date_system":"1900"}

{"sheet":"3333002","index":0,"n_rows":50,"n_cols":22,"rows_kept":50,"cut":false,"hidden":false,"merged":[[5,0,5,8],[0,0,0,8],[2,0,2,8],[3,0,3,8],[4,0,4,4],[1,0,1,8]]}
["الجمهورية الجزائرية الديمقراطية الشعبية"]
["الجمهورية الجزائرية الديمقراطية الشعبية"]
["وزارة التربية الوطنية",null,null,null,null,null,null,null,null,null,null,null,null,null,null,null,null,null,null,null,null,{"$f":"الارشادات!D2","v":"الارشادات!$A$1:$A$18"}]
[]
[]
["وثيقة حجز النقاط  الخاصة بـ:الفصل الثاني السنة الدراسية : 2019-2020  الفوج التربوي : ثالثة  ثانوي علوم تجريبية    2 مادة : اللغة العربية و آدابها"]
[20192,"01","08013003"]
["اللقب","الاسم","تاريخ الميلاد","التقييم المستمر /20","أعمال تطبيقية أو تعبير شفوي /20","معدل الفروض /20","الاختبار /20","التقديرات","الارشادات"]
[1,null,null,12,12,10,11,{"$f":"IF(G9=\"\",\"\",IF((D9+E9+F9+(G9*2))/5>=15,\"نتائج ممتازة\",IF((D9+E9+F9+(G9*2))/5>=14,\"نتائج جيدة\",IF((D9+E9+F9+(G9*2))/5>=12,\"نتائج حسنة\",IF((D9+E9+F9+(G9*2))/5>=10,\"نتائج  متوسطة\",IF((D9+E9+F9+(G9*2))/5>=7,\"نتائج  غير مقبولة\",\"نتائج ضعيفة جدا\"))))))","v":"نتائج  متوسطة"}]
[2,null,null,10,13,14,10,{"$f":"IF(G10=\"\",\"\",IF((D10+E10+F10+(G10*2))/5>=15,\"نتائج ممتازة\",IF((D10+E10+F10+(G10*2))/5>=14,\"نتائج جيدة\",IF((D10+E10+F10+(G10*2))/5>=12,\"نتائج حسنة\",IF((D10+E10+F10+(G10*2))/5>=10,\"نتائج  متوسطة\",IF((D10+E10+F10+(G10*2))/5>=7,\"نتائج  غير مقبولة\",\"نتائج ضعيفة جدا\"))))))","v":"نتائج  متوسطة"}]
[3,null,null,15,14,16,13.5,"نتائج جيدة"]
[4,null,null,14,11,11,10,"نتائج  متوسطة"]
[null,null,null,null,null,null,null,""]
[null,null,null,null,null,null,null,""]
[null,null,null,null,null,null,null,""]
[null,null,null,null,null,null,null,""]
[null,null,null,null,null,null,null,""]
[null,null,null,null,null,null,null,""]
[null,null,null,null,null,null,null,""]
[null,null,null,null,null,null,null,""]
[null,null,null,null,null,null,null,""]
[null,null,null,null,null,null,null,""]
[null,null,null,null,null,null,null,""]
[null,null,null,null,null,null,null,""]
[null,null,null,null,null,null,null,""]
[null,null,null,null,null,null,null,""]
[null,null,null,null,null,null,null,""]
[null,null,null,null,null,null,null,""]
[null,null,null,null,null,null,null,""]
[null,null,null,null,null,null,null,""]
[null,null,null,null,null,null,null,""]
[null,null,null,null,null,null,null,""]
[null,null,null,null,null,null,null,""]
[null,null,null,null,null,null,null,""]
[null,null,null,null,null,null,null,""]
[null,null,null,null,null,null,null,""]
[null,null,null,null,null,null,null,""]
[null,null,null,null,null,null,null,""]
[null,null,null,null,null,null,null,""]
[null,null,null,null,null,null,null,""]
[null,null,null,null,null,null,null,""]
[null,null,null,null,null,null,null,""]
[null,null,null,null,null,null,null,""]
[null,null,null,null,null,null,null,""]
[null,null,null,null,null,null,null,""]
[null,null,null,null,null,null,null,""]
[null,null,null,null,null,null,null,""]
[null,null,null,null,null,null,null,""]
[null,null,null,null,null,null,null,""]
[null,null,null,null,null,null,null,""]

{"sheet":"الارشادات","index":1,"n_rows":18,"n_cols":4,"rows_kept":18,"cut":false,"hidden":false,"merged":[]}
["عينة ملاحظات موجهة للتلاميذ ذوي المستوى المتدني"]
["ما تزال النقائص مستمرة، انتبه",null,null,{"$f":"\"الارشادات!$A$1:$A$\"&COUNTA(A:A)","v":"الارشادات!$A$1:$A$18"}]
["عملك ناقص، لم تبذل جهدا لتجاوز الضعف"]
["لم يسجل أي تقدم إيجابي، ينتظر منك المزيد من العمل"]
["عليك بالتحضير الجيد في البيت والتركيز في الدروس لتجاوز الصعوبات"]
["عينة ملاحظات موجهة للتلاميذ ذوي المستوى المتوسط"]
["نتائج متواضعة لا تستسلم للفشل"]
["رغم التراجع الملحوظ في نتائجك فإن لديك قدرات على تحسين النتائج مستقبلا"]
["تعثر مؤقت، لديك القدرة على تجاوزه انتظر منك عملا أفضل"]
["عليك بمضاعفة الجهود والاهتمام أكثر بالدراسة لتحسين النتائج"]
["عينة ملاحظات موجهة للتلاميذ ذوي المستوى الجيد"]
["اهتمام ملحوظ بالدراسة تشكر عليه، يطلب منك مزيدا من العمل لتحسين النتائج"]
["نتائج حسنة باستطاعتك التقدم أكثر، أنتظرك في الفصل الثالث"]
["تحسن ملحوظ عملا و سلوكا، أشجعك واصل"]
["باستطاعتك مواصلة هذا التحسن في النتائج لأنك أصبحت تتحكم في عملك بشكل جيد واصل"]
["أحسنت، أشكرك وأهنئك على جديتك في الدراسة"]
["ممتازة علما وعملا وخلقا.بورك فيك .وفقك الله"]
["لايبالي بادراسة،اعتني بدروسك"]